[Event "FIDE Grand Swiss 2023"]
[Site "Villa Marina, Douglas, Isle of Man"]
[Date "2023.10.28"]
[Round "4.22"]
[White "Tari, Aryan"]
[Black "Grandelius, Nils"]
[Result "1/2-1/2"]
[WhiteElo "2619"]
[BlackElo "2689"]
[EventDate "2023.10.25"]
[ECO "B52"]
[PlyCount "66"]
[BlackFideId "1710400"]
[TimeControl "40/100 + 20/50 + 15 + 30s/move"]
[WhiteFideId "1510045"]

1.e4 {[%clk 01:40:58] [%emt 00:00:02]} 1...c5 {[%clk 01:40:14] [%emt 00:00:46]} 
2.Nf3 {[%clk 01:41:21] [%emt 00:00:07]} 2...d6 {[%clk 01:40:37] [%emt 00:00:07]} 
3.Bb5+ {[%clk 01:41:35] [%emt 00:00:16]} 3...Bd7 {[%clk 01:40:09] [%emt
00:00:57]} 4.Bxd7+ {[%clk 01:41:54] [%emt 00:00:12]} 4...Nxd7 {[%clk 01:39:30]
[%emt 00:01:09]} 5.O-O {[%clk 01:41:44] [%emt 00:00:40]} 5...e6 {[%clk 01:39:41]
[%emt 00:00:18]} 6.d3 {[%clk 01:39:46] [%emt 00:02:29]} 6...Be7 {[%clk 01:39:07]
[%emt 00:01:02]} 7.a4 {[%clk 01:27:43] [%emt 00:12:36]} 7...Ngf6 {[%clk
01:33:28] [%emt 00:06:07]} 8.Re1 {[%clk 01:26:04] [%emt 00:02:11]} 8...O-O 
{[%clk 01:31:05] [%emt 00:02:51]} 9.c3 {[%clk 01:22:19] [%emt 00:04:16]} 
9...Rc8 {[%clk 01:13:48] [%emt 00:17:47]} 10.Na3 {[%clk 01:16:34] [%emt
00:06:16]} 10...Nb8 {[%clk 00:55:18] [%emt 00:18:59]} 11.Bd2 {[%clk 00:53:40]
[%emt 00:23:24]} 11...Nc6 {[%clk 00:51:15] [%emt 00:04:33]} 12.h3 {[%clk
00:50:25] [%emt 00:03:45]} 12...Nd7 {[%clk 00:46:01] [%emt 00:05:44]} 13.Bf4 
{[%clk 00:44:57] [%emt 00:05:58]} 13...Nde5 {[%clk 00:43:08] [%emt 00:03:23]} 
14.Nxe5 {[%clk 00:42:00] [%emt 00:03:27]} 14...dxe5 {[%clk 00:41:47] [%emt
00:01:51]} 15.Bg3 {[%clk 00:41:58] [%emt 00:00:33]} 15...Qc7 {[%clk 00:35:01]
[%emt 00:07:16]} 16.Nc4 {[%clk 00:41:35] [%emt 00:00:53]} 16...Rfd8 {[%clk
00:35:00] [%emt 00:00:30]} 17.Qd2 {[%clk 00:36:35] [%emt 00:05:30]} 17...Rd7 
{[%clk 00:33:38] [%emt 00:01:52]} 18.Qe3 {[%clk 00:33:15] [%emt 00:03:51]} 
18...b6 {[%clk 00:28:24] [%emt 00:05:43]} 19.f4 {[%clk 00:30:21] [%emt
00:03:24]} 19...exf4 {[%clk 00:26:31] [%emt 00:02:24]} 20.Bxf4 {[%clk 00:30:44]
[%emt 00:00:06]} 20...Qd8 {[%clk 00:22:04] [%emt 00:04:56]} 21.Rad1 {[%clk
00:29:18] [%emt 00:01:57]} 21...a6 {[%clk 00:22:02] [%emt 00:00:33]} 22.Rf1 
{[%clk 00:25:08] [%emt 00:04:40]} 22...b5 {[%clk 00:21:36] [%emt 00:00:56]} 
23.axb5 {[%clk 00:24:13] [%emt 00:01:25]} 23...axb5 {[%clk 00:22:04] [%emt
00:00:01]} 24.Ne5 {[%clk 00:24:24] [%emt 00:00:20]} 24...Nxe5 {[%clk 00:21:51]
[%emt 00:00:42]} 25.Bxe5 {[%clk 00:24:50] [%emt 00:00:04]} 25...f6 {[%clk
00:17:53] [%emt 00:04:28]} 26.Bg3 {[%clk 00:25:13] [%emt 00:00:06]} 26...e5 
{[%clk 00:15:46] [%emt 00:02:37]} 27.Bf2 {[%clk 00:21:47] [%emt 00:03:57]} 
27...Bf8 {[%clk 00:12:17] [%emt 00:03:59]} 28.Qe2 {[%clk 00:21:01] [%emt
00:01:16]} 28...Qe8 {[%clk 00:12:28] [%emt 00:00:19]} 29.Qc2 {[%clk 00:19:38]
[%emt 00:01:53]} 29...Qe6 {[%clk 00:12:55] [%emt 00:00:03]} 30.Ra1 {[%clk
00:14:54] [%emt 00:05:14]} 30...Rcd8 {[%clk 00:13:19] [%emt 00:00:06]} 31.Rfd1 
{[%clk 00:15:21] [%emt 00:00:04]} 31...h6 {[%clk 00:13:05] [%emt 00:00:43]} 
32.Be3 {[%clk 00:14:38] [%emt 00:01:13]} 32...Kh7 {[%clk 00:12:29] [%emt
00:01:06]} 33.Rd2 {[%clk 00:14:18] [%emt 00:00:50]} 33...Be7 {[%clk 00:10:00]
[%emt 00:02:27]} 1/2-1/2

[Event "FIDE Grand Swiss 2023"]
[Site "Villa Marina, Douglas, Isle of Man"]
[Date "2023.10.28"]
[Round "4.23"]
[White "Gukesh, D"]
[Black "Saric, Ivan"]
[Result "1/2-1/2"]
[WhiteElo "2758"]
[BlackElo "2647"]
[EventDate "2023.10.25"]
[ECO "E10"]
[PlyCount "87"]
[BlackFideId "14508150"]
[TimeControl "40/100 + 20/50 + 15 + 30s/move"]
[WhiteFideId "46616543"]

1.d4 {[%clk 01:40:55] [%emt 00:00:04]} 1...Nf6 {[%clk 01:40:54] [%emt 00:00:06]} 
2.c4 {[%clk 01:41:19] [%emt 00:00:06]} 2...e6 {[%clk 01:41:21] [%emt 00:00:03]} 
3.Nf3 {[%clk 01:41:43] [%emt 00:00:05]} 3...d5 {[%clk 01:41:48] [%emt 00:00:04]} 
4.Nc3 {[%clk 01:42:07] [%emt 00:00:06]} 4...Nbd7 {[%clk 01:41:43] [%emt
00:00:35]} 5.Bg5 {[%clk 01:34:15] [%emt 00:08:23]} 5...h6 {[%clk 01:41:31] [%emt
00:00:42]} 6.Bh4 {[%clk 01:34:22] [%emt 00:00:22]} 6...Be7 {[%clk 01:41:22]
[%emt 00:00:39]} 7.e3 {[%clk 01:34:39] [%emt 00:00:13]} 7...O-O {[%clk 01:41:47]
[%emt 00:00:05]} 8.Qc2 {[%clk 01:28:56] [%emt 00:06:13]} 8...c5 {[%clk 01:39:03]
[%emt 00:03:15]} 9.cxd5 {[%clk 01:26:45] [%emt 00:02:41]} 9...Nxd5 {[%clk
01:38:27] [%emt 00:01:06]} 10.Bxe7 {[%clk 01:27:08] [%emt 00:00:07]} 10...Qxe7 
{[%clk 01:36:16] [%emt 00:02:41]} 11.Nxd5 {[%clk 01:27:31] [%emt 00:00:07]} 
11...exd5 {[%clk 01:36:43] [%emt 00:00:03]} 12.dxc5 {[%clk 01:27:54] [%emt
00:00:07]} 12...Nxc5 {[%clk 01:35:49] [%emt 00:01:24]} 13.Be2 {[%clk 01:28:17]
[%emt 00:00:07]} 13...Bg4 {[%clk 01:34:31] [%emt 00:01:48]} 14.O-O {[%clk
01:28:31] [%emt 00:00:16]} 14...Rac8 {[%clk 01:33:40] [%emt 00:01:23]} 15.h3 
{[%clk 01:26:53] [%emt 00:02:07]} 15...Ne6 {[%clk 01:28:43] [%emt 00:05:26]} 
16.Qa4 {[%clk 01:12:57] [%emt 00:14:26]} 16...Bf5 {[%clk 01:23:16] [%emt
00:05:58]} 17.Rac1 {[%clk 01:11:36] [%emt 00:01:51]} 17...a6 {[%clk 01:12:57]
[%emt 00:10:49]} 18.Rfd1 {[%clk 01:07:26] [%emt 00:04:39]} 18...Rc5 {[%clk
01:10:55] [%emt 00:02:33]} 19.Qb3 {[%clk 00:55:51] [%emt 00:12:06]} 19...Rfc8 
{[%clk 00:58:50] [%emt 00:12:34]} 20.Rxc5 {[%clk 00:55:25] [%emt 00:00:57]} 
20...Rxc5 {[%clk 00:59:16] [%emt 00:00:05]} 21.Bd3 {[%clk 00:52:55] [%emt
00:02:59]} 21...Be4 {[%clk 00:52:05] [%emt 00:07:40]} 22.Bxe4 {[%clk 00:46:07]
[%emt 00:07:19]} 22...dxe4 {[%clk 00:52:13] [%emt 00:00:22]} 23.Nd2 {[%clk
00:46:32] [%emt 00:00:05]} 23...Rb5 {[%clk 00:48:47] [%emt 00:03:56]} 24.Qc2 
{[%clk 00:45:50] [%emt 00:01:13]} 24...Nc5 {[%clk 00:46:23] [%emt 00:02:54]} 
25.b3 {[%clk 00:37:12] [%emt 00:09:08]} 25...Rb6 {[%clk 00:42:47] [%emt
00:04:07]} 26.Nf1 {[%clk 00:35:13] [%emt 00:02:28]} 26...Rc6 {[%clk 00:38:54]
[%emt 00:04:23]} 27.Ng3 {[%clk 00:30:14] [%emt 00:05:29]} 27...Nd3 {[%clk
00:37:40] [%emt 00:01:44]} 28.Qe2 {[%clk 00:29:16] [%emt 00:01:27]} 28...Rg6 
{[%clk 00:36:08] [%emt 00:02:03]} 29.Qh5 {[%clk 00:23:25] [%emt 00:06:21]} 
29...Rf6 {[%clk 00:08:47] [%emt 00:27:52]} 30.Rf1 {[%clk 00:14:30] [%emt
00:09:25]} 30...Re6 {[%clk 00:07:41] [%emt 00:01:36]} 31.Qd5 {[%clk 00:13:54]
[%emt 00:01:06]} 31...Re5 {[%clk 00:07:41] [%emt 00:00:30]} 32.Qd4 {[%clk
00:12:47] [%emt 00:01:37]} 32...f5 {[%clk 00:06:55] [%emt 00:01:16]} 33.f3 
{[%clk 00:08:23] [%emt 00:04:55]} 33...Qc5 {[%clk 00:04:57] [%emt 00:02:28]} 
34.fxe4 {[%clk 00:07:57] [%emt 00:00:56]} 34...fxe4 {[%clk 00:05:23] [%emt
00:00:04]} 35.Qd8+ {[%clk 00:05:49] [%emt 00:02:38]} 35...Kh7 {[%clk 00:05:49]
[%emt 00:00:05]} 36.Rf8 {[%clk 00:06:13] [%emt 00:00:06]} 36...Qxe3+ {[%clk
00:04:35] [%emt 00:01:43]} 37.Kh2 {[%clk 00:06:42]} 37...Qc5 {[%clk 00:03:52]
[%emt 00:01:13]} 38.Rh8+ {[%clk 00:03:44] [%emt 00:03:28]} 38...Kg6 {[%clk
00:04:21] [%emt 00:00:02]} 39.Qg8 {[%clk 00:03:13] [%emt 00:01:01]} 39...Qd6 
{[%clk 00:02:35] [%emt 00:02:16]} 40.Qh7+ {[%clk 00:00:45] [%emt 00:02:58]} 
40...Kf6 {[%clk 00:01:20] [%emt 00:01:43]} 41.h4 {[%clk 00:39:58] [%emt
00:11:19]} 41...Nf4 {[%clk 00:37:29] [%emt 00:14:21]} 42.Qxe4 {[%clk 00:39:23]
[%emt 00:01:06]} 42...Nh5 {[%clk 00:30:58] [%emt 00:07:00]} 43.Qf3+ {[%clk
00:36:08] [%emt 00:03:44]} 43...Kg6 {[%clk 00:31:15] [%emt 00:00:13]} 44.Nxh5 
{[%clk 00:14:48] [%emt 00:21:50]} 1/2-1/2

[Event "FIDE Grand Swiss 2023"]
[Site "Villa Marina, Douglas, Isle of Man"]
[Date "2023.10.28"]
[Round "4.24"]
[White "Aronian, Levon"]
[Black "Ponomariov, Ruslan"]
[Result "1/2-1/2"]
[WhiteElo "2742"]
[BlackElo "2641"]
[EventDate "2023.10.25"]
[ECO "C55"]
[PlyCount "111"]
[BlackFideId "14103320"]
[TimeControl "40/100 + 20/50 + 15 + 30s/move"]
[WhiteFideId "13300474"]

1.e4 {[%clk 01:40:54] [%emt 00:00:06]} 1...e5 {[%clk 01:40:35] [%emt 00:00:25]} 
2.Nf3 {[%clk 01:41:18] [%emt 00:00:06]} 2...Nc6 {[%clk 01:40:57] [%emt
00:00:07]} 3.Bc4 {[%clk 01:41:43] [%emt 00:00:06]} 3...Nf6 {[%clk 01:41:07]
[%emt 00:00:19]} 4.d3 {[%clk 01:42:06] [%emt 00:00:07]} 4...h6 {[%clk 01:41:07]
[%emt 00:00:30]} 5.O-O {[%clk 01:42:18] [%emt 00:00:19]} 5...d6 {[%clk 01:41:02]
[%emt 00:00:35]} 6.c3 {[%clk 01:42:41] [%emt 00:00:07]} 6...g6 {[%clk 01:39:19]
[%emt 00:02:12]} 7.d4 {[%clk 01:42:36] [%emt 00:00:36]} 7...Qe7 {[%clk 01:37:04]
[%emt 00:02:45]} 8.Re1 {[%clk 01:40:52] [%emt 00:02:14]} 8...Bg7 {[%clk
01:36:19] [%emt 00:01:14]} 9.h3 {[%clk 01:37:40] [%emt 00:03:42]} 9...O-O 
{[%clk 01:34:41] [%emt 00:02:08]} 10.a4 {[%clk 01:37:43] [%emt 00:00:27]} 
10...a5 {[%clk 01:31:04] [%emt 00:04:07]} 11.Na3 {[%clk 01:25:32] [%emt
00:12:41]} 11...Kh8 {[%clk 01:17:57] [%emt 00:13:37]} 12.Nb5 {[%clk 01:18:22]
[%emt 00:07:40]} 12...Na7 {[%clk 01:11:39] [%emt 00:06:48]} 13.Bd3 {[%clk
01:09:20] [%emt 00:09:32]} 13...Nxb5 {[%clk 01:07:58] [%emt 00:04:10]} 14.axb5 
{[%clk 01:09:02] [%emt 00:00:48]} 14...Bd7 {[%clk 01:08:18] [%emt 00:00:11]} 
15.Be3 {[%clk 01:07:00] [%emt 00:02:32]} 15...b6 {[%clk 01:00:41] [%emt
00:08:07]} 16.c4 {[%clk 01:02:32] [%emt 00:04:59]} 16...exd4 {[%clk 00:59:31]
[%emt 00:01:40]} 17.Bxd4 {[%clk 01:01:45] [%emt 00:01:17]} 17...Be6 {[%clk
00:59:50] [%emt 00:00:11]} 18.Qd2 {[%clk 00:59:32] [%emt 00:02:44]} 18...Rad8 
{[%clk 00:55:20] [%emt 00:04:59]} 19.Qc3 {[%clk 00:49:34] [%emt 00:10:28]} 
19...Rg8 {[%clk 00:52:35] [%emt 00:03:16]} 20.Re3 {[%clk 00:42:42] [%emt
00:07:21]} 20...Nd7 {[%clk 00:50:12] [%emt 00:02:54]} 21.Rae1 {[%clk 00:41:11]
[%emt 00:02:01]} 21...Kh7 {[%clk 00:40:36] [%emt 00:10:06]} 22.b3 {[%clk
00:33:01] [%emt 00:08:42]} 22...Bxd4 {[%clk 00:37:03] [%emt 00:04:01]} 23.Nxd4 
{[%clk 00:33:28] [%emt 00:00:04]} 23...Qf6 {[%clk 00:37:16] [%emt 00:00:16]} 
24.Rf1 {[%clk 00:33:44] [%emt 00:00:14]} 24...Qf4 {[%clk 00:32:56] [%emt
00:04:51]} 25.Bc2 {[%clk 00:30:14] [%emt 00:04:00]} 25...Rde8 {[%clk 00:29:17]
[%emt 00:04:09]} 26.Qd2 {[%clk 00:25:46] [%emt 00:04:56]} 26...Nc5 {[%clk
00:28:38] [%emt 00:01:10]} 27.Ne2 {[%clk 00:26:02] [%emt 00:00:15]} 27...Qh4 
{[%clk 00:27:20] [%emt 00:01:48]} 28.f4 {[%clk 00:24:49] [%emt 00:01:43]} 
28...Bc8 {[%clk 00:20:04] [%emt 00:07:46]} 29.e5 {[%clk 00:21:01] [%emt
00:04:18]} 29...Rd8 {[%clk 00:18:24] [%emt 00:02:11]} 30.Qc3 {[%clk 00:16:26]
[%emt 00:05:05]} 30...dxe5 {[%clk 00:17:37] [%emt 00:01:17]} 31.fxe5 {[%clk
00:15:12] [%emt 00:01:44]} 31...Rg7 {[%clk 00:10:53] [%emt 00:07:13]} 32.Rf6 
{[%clk 00:12:32] [%emt 00:03:10]} 32...Ne6 {[%clk 00:10:55] [%emt 00:00:28]} 
33.Kh2 {[%clk 00:07:14] [%emt 00:05:48]} 33...Qg5 {[%clk 00:08:20] [%emt
00:03:05]} 34.Be4 {[%clk 00:04:39] [%emt 00:03:05]} 34...Rd1 {[%clk 00:07:12]
[%emt 00:01:39]} 35.Bd5 {[%clk 00:05:00] [%emt 00:00:09]} 35...Bd7 {[%clk
00:06:14] [%emt 00:01:28]} 36.Bxe6 {[%clk 00:02:38] [%emt 00:02:51]} 36...Bxe6 
{[%clk 00:05:58] [%emt 00:00:46]} 37.Nf4 {[%clk 00:02:51] [%emt 00:00:17]} 
37...Bf5 {[%clk 00:04:10] [%emt 00:02:17]} 38.Nd5 {[%clk 00:03:17] [%emt
00:00:04]} 38...h5 {[%clk 00:04:05] [%emt 00:00:36]} 39.Rg3 {[%clk 00:03:22]
[%emt 00:00:24]} 39...Qh4 {[%clk 00:03:26] [%emt 00:01:10]} 40.Qe3 {[%clk
00:00:38] [%emt 00:03:15]} 40...Rd3 {[%clk 00:02:11] [%emt 00:01:44]} 41.Qg5 
{[%clk 00:39:43] [%emt 00:11:24]} 41...Qxg5 {[%clk 00:45:48] [%emt 00:06:54]} 
42.Rxg5 {[%clk 00:40:12] [%emt 00:00:01]} 42...Rxb3 {[%clk 00:45:50] [%emt
00:00:28]} 43.Nxc7 {[%clk 00:38:15] [%emt 00:02:26]} 43...a4 {[%clk 00:38:29]
[%emt 00:07:51]} 44.Ne8 {[%clk 00:36:58] [%emt 00:01:47]} 44...Rg8 {[%clk
00:29:34] [%emt 00:09:25]} 45.Rfxf5 {[%clk 00:36:14] [%emt 00:01:13]} 45...Rxe8 
{[%clk 00:29:09] [%emt 00:00:56]} 46.Rxf7+ {[%clk 00:36:34] [%emt 00:00:10]} 
46...Kh6 {[%clk 00:29:22] [%emt 00:00:17]} 47.h4 {[%clk 00:36:58] [%emt
00:00:06]} 47...Rc3 {[%clk 00:24:46] [%emt 00:05:06]} 48.Rf6 {[%clk 00:36:15]
[%emt 00:01:12]} 48...Rg8 {[%clk 00:21:03] [%emt 00:04:13]} 49.Rxb6 {[%clk
00:35:25] [%emt 00:01:21]} 49...Rxc4 {[%clk 00:21:26] [%emt 00:00:08]} 50.Kh3 
{[%clk 00:35:51] [%emt 00:00:04]} 50...Rc5 {[%clk 00:20:22] [%emt 00:01:34]} 
51.e6 {[%clk 00:31:07] [%emt 00:05:14]} 51...Rxg5 {[%clk 00:20:07] [%emt
00:00:44]} 52.hxg5+ {[%clk 00:31:33] [%emt 00:00:04]} 52...Kxg5 {[%clk 00:20:33]
[%emt 00:00:04]} 53.e7 {[%clk 00:30:29] [%emt 00:01:34]} 53...Re8 {[%clk
00:19:19] [%emt 00:01:45]} 54.Rb7 {[%clk 00:27:35] [%emt 00:03:24]} 54...Kf6 
{[%clk 00:17:48] [%emt 00:02:01]} 55.b6 {[%clk 00:27:55] [%emt 00:00:09]} 
55...Kf7 {[%clk 00:13:33] [%emt 00:04:45]} 56.Ra7 {[%clk 00:26:59] [%emt
00:01:25]} 1/2-1/2

[Event "FIDE Grand Swiss 2023"]
[Site "Villa Marina, Douglas, Isle of Man"]
[Date "2023.10.28"]
[Round "4.25"]
[White "Yilmaz, Mustafa"]
[Black "Praggnanandhaa, R"]
[Result "1/2-1/2"]
[WhiteElo "2640"]
[BlackElo "2738"]
[EventDate "2023.10.25"]
[ECO "D26"]
[PlyCount "60"]
[BlackFideId "25059530"]
[TimeControl "40/100 + 20/50 + 15 + 30s/move"]
[WhiteFideId "6302718"]

1.d4 {[%clk 01:40:56] [%emt 00:00:03]} 1...d5 {[%clk 01:40:08] [%emt 00:00:52]} 
2.c4 {[%clk 01:41:00] [%emt 00:00:27]} 2...dxc4 {[%clk 01:40:30] [%emt
00:00:06]} 3.Nf3 {[%clk 01:40:23] [%emt 00:01:09]} 3...Nf6 {[%clk 01:40:53]
[%emt 00:00:06]} 4.e3 {[%clk 01:40:51] [%emt 00:00:03]} 4...e6 {[%clk 01:41:18]
[%emt 00:00:04]} 5.Bxc4 {[%clk 01:41:18] [%emt 00:00:04]} 5...c5 {[%clk
01:41:42] [%emt 00:00:05]} 6.O-O {[%clk 01:41:23] [%emt 00:00:26]} 6...Nc6 
{[%clk 01:42:03] [%emt 00:00:10]} 7.a3 {[%clk 01:38:57] [%emt 00:02:56]} 7...a6 
{[%clk 01:40:55] [%emt 00:01:37]} 8.dxc5 {[%clk 01:37:59] [%emt 00:01:28]} 
8...Qxd1 {[%clk 01:40:41] [%emt 00:00:44]} 9.Rxd1 {[%clk 01:38:24] [%emt
00:00:04]} 9...Bxc5 {[%clk 01:41:09] [%emt 00:00:03]} 10.b4 {[%clk 01:38:37]
[%emt 00:00:17]} 10...Be7 {[%clk 01:41:28] [%emt 00:00:10]} 11.Bb2 {[%clk
01:38:47] [%emt 00:00:20]} 11...O-O {[%clk 01:40:39] [%emt 00:01:19]} 12.Nbd2 
{[%clk 01:38:38] [%emt 00:00:39]} 12...Rd8 {[%clk 01:36:23] [%emt 00:04:46]} 
13.Be2 {[%clk 01:29:22] [%emt 00:09:46]} 13...Bd7 {[%clk 01:32:52] [%emt
00:04:01]} 14.Nb3 {[%clk 01:26:39] [%emt 00:03:13]} 14...Be8 {[%clk 01:20:24]
[%emt 00:12:57]} 15.Rxd8 {[%clk 01:24:13] [%emt 00:02:56]} 15...Nxd8 {[%clk
01:05:44] [%emt 00:15:10]} 16.Rc1 {[%clk 01:21:22] [%emt 00:03:20]} 16...Ne4 
{[%clk 01:03:07] [%emt 00:03:07]} 17.Ne5 {[%clk 00:54:38] [%emt 00:27:14]} 
17...Nd6 {[%clk 00:55:10] [%emt 00:08:28]} 18.f4 {[%clk 00:42:31] [%emt
00:12:36]} 18...Rc8 {[%clk 00:44:21] [%emt 00:11:20]} 19.Rxc8 {[%clk 00:39:14]} 
19...Nxc8 {[%clk 00:44:48] [%emt 00:03:49]} 20.Nc4 {[%clk 00:34:15] [%emt
00:05:31]} 20...Ba4 {[%clk 00:40:05] [%emt 00:05:12]} 21.Nd4 {[%clk 00:32:02]
[%emt 00:02:42]} 21...Nd6 {[%clk 00:36:17] [%emt 00:04:19]} 22.Nxd6 {[%clk
00:24:45] [%emt 00:07:47]} 22...Bxd6 {[%clk 00:36:38] [%emt 00:00:09]} 23.Bd3 
{[%clk 00:24:44] [%emt 00:00:31]} 23...Bc7 {[%clk 00:34:45] [%emt 00:02:23]} 
24.g3 {[%clk 00:23:48] [%emt 00:01:26]} 24...Nc6 {[%clk 00:31:56] [%emt
00:03:20]} 25.Nxc6 {[%clk 00:22:45] [%emt 00:01:33]} 25...Bxc6 {[%clk 00:32:20]
[%emt 00:00:06]} 26.Kf2 {[%clk 00:22:33] [%emt 00:00:41]} 26...f5 {[%clk
00:32:07] [%emt 00:00:43]} 27.h3 {[%clk 00:19:11] [%emt 00:03:52]} 27...h5 
{[%clk 00:30:44] [%emt 00:01:53]} 28.Be2 {[%clk 00:18:32] [%emt 00:01:10]} 
28...g6 {[%clk 00:31:05] [%emt 00:00:09]} 29.g4 {[%clk 00:18:54] [%emt
00:00:08]} 29...hxg4 {[%clk 00:31:21] [%emt 00:00:15]} 30.hxg4 {[%clk 00:19:20]
[%emt 00:00:04]} 30...Kf7 {[%clk 00:31:37] [%emt 00:00:14]} 1/2-1/2

[Event "FIDE Grand Swiss 2023"]
[Site "Villa Marina, Douglas, Isle of Man"]
[Date "2023.10.28"]
[Round "4.26"]
[White "Vachier-Lagrave, Maxime"]
[Black "Sargsyan, Shant"]
[Result "1/2-1/2"]
[WhiteElo "2727"]
[BlackElo "2631"]
[EventDate "2023.10.25"]
[ECO "C50"]
[PlyCount "67"]
[BlackFideId "13306766"]
[TimeControl "40/100 + 20/50 + 15 + 30s/move"]
[WhiteFideId "623539"]

1.e4 {[%clk 01:40:58] [%emt 00:00:02]} 1...e5 {[%clk 01:39:30] [%emt 00:01:31]} 
2.Nf3 {[%clk 01:41:23] [%emt 00:00:04]} 2...Nc6 {[%clk 01:39:49] [%emt
00:00:11]} 3.Bc4 {[%clk 01:41:46] [%emt 00:00:07]} 3...Nf6 {[%clk 01:39:52]
[%emt 00:00:27]} 4.d3 {[%clk 01:42:12] [%emt 00:00:04]} 4...Bc5 {[%clk 01:40:14]
[%emt 00:00:08]} 5.c3 {[%clk 01:42:39] [%emt 00:00:04]} 5...O-O {[%clk 01:40:18]
[%emt 00:00:26]} 6.Bg5 {[%clk 01:42:32] [%emt 00:00:37]} 6...Be7 {[%clk
01:39:19] [%emt 00:01:29]} 7.Nbd2 {[%clk 01:39:40] [%emt 00:03:22]} 7...Na5 
{[%clk 01:38:52] [%emt 00:00:57]} 8.Bb5 {[%clk 01:32:05] [%emt 00:08:05]} 
8...h6 {[%clk 01:38:27] [%emt 00:00:55]} 9.Bh4 {[%clk 01:27:00] [%emt 00:05:35]} 
9...d6 {[%clk 01:37:59] [%emt 00:00:58]} 10.Nf1 {[%clk 01:17:54] [%emt
00:09:36]} 10...a6 {[%clk 01:29:15] [%emt 00:09:14]} 11.Ba4 {[%clk 01:18:00]
[%emt 00:00:23]} 11...b5 {[%clk 01:28:35] [%emt 00:01:10]} 12.Bc2 {[%clk
01:17:59] [%emt 00:00:31]} 12...c5 {[%clk 01:28:53] [%emt 00:00:12]} 13.Ne3 
{[%clk 01:16:37] [%emt 00:01:52]} 13...Be6 {[%clk 01:28:09] [%emt 00:01:13]} 
14.O-O {[%clk 01:12:28] [%emt 00:04:39]} 14...Rc8 {[%clk 01:12:36] [%emt
00:16:03]} 15.Nd2 {[%clk 01:04:51] [%emt 00:08:06]} 15...Nc6 {[%clk 01:08:36]
[%emt 00:04:31]} 16.Bb3 {[%clk 00:56:24] [%emt 00:08:56]} 16...Qd7 {[%clk
01:06:06] [%emt 00:03:00]} 17.Bxf6 {[%clk 00:43:20] [%emt 00:13:35]} 17...Bxf6 
{[%clk 01:04:15] [%emt 00:02:20]} 18.a4 {[%clk 00:42:17] [%emt 00:01:33]} 
18...Bg5 {[%clk 01:00:01] [%emt 00:04:44]} 19.axb5 {[%clk 00:42:36] [%emt
00:00:12]} 19...axb5 {[%clk 01:00:07] [%emt 00:00:24]} 20.Nd5 {[%clk 00:41:07]
[%emt 00:01:59]} 20...Bxd2 {[%clk 00:49:51] [%emt 00:10:45]} 21.Qxd2 {[%clk
00:41:29] [%emt 00:00:09]} 21...Qb7 {[%clk 00:49:45] [%emt 00:00:36]} 22.Qd1 
{[%clk 00:35:46] [%emt 00:06:13]} 22...Ne7 {[%clk 00:47:37] [%emt 00:02:38]} 
23.Nxe7+ {[%clk 00:34:43] [%emt 00:01:34]} 23...Qxe7 {[%clk 00:47:50] [%emt
00:00:16]} 24.Bxe6 {[%clk 00:34:12] [%emt 00:01:00]} 24...Qxe6 {[%emt 00:02:50]} 
25.Ra5 {[%clk 00:32:04]} 25...Rb8 {[%clk 00:47:14] [%emt 00:01:24]} 26.Qc2 
{[%clk 00:27:57] [%emt 00:04:37]} 26...Rb7 {[%clk 00:41:21] [%emt 00:06:23]} 
27.h3 {[%clk 00:27:16] [%emt 00:01:11]} 27...Rfb8 {[%clk 00:40:01] [%emt
00:01:50]} 28.Rb1 {[%clk 00:23:10] [%emt 00:04:36]} 28...g6 {[%clk 00:34:03]
[%emt 00:06:28]} 29.b4 {[%clk 00:22:25] [%emt 00:01:15]} 29...Kg7 {[%clk
00:33:29] [%emt 00:01:04]} 30.Qd2 {[%clk 00:17:27] [%emt 00:05:29]} 30...Qc8 
{[%clk 00:29:50] [%emt 00:04:09]} 31.Kh2 {[%clk 00:15:03] [%emt 00:02:54]} 
31...Qc7 {[%clk 00:25:38] [%emt 00:04:41]} 32.Qa2 {[%clk 00:12:19] [%emt
00:03:14]} 32...cxb4 {[%clk 00:25:13] [%emt 00:00:55]} 33.cxb4 {[%clk 00:12:46]
[%emt 00:00:04]} 33...Rc8 {[%clk 00:25:17] [%emt 00:00:25]} 34.Qd5 {[%clk
00:11:22] [%emt 00:01:53]} 1/2-1/2